fUST/lending_fUST_20260330
["ID","MTS","AMOUNT","RATE_DAILY","PERIOD"]
[419089510,1774860410155,-500.0,0.00025479,9]
[419089511,1774860410227,-500.0,0.00025479,9]
[419089512,1774860410293,-500.0,0.00025479,9]
[419089513,1774860410363,-500.0,0.00025479,9]
[419089514,1774860410434,-500.0,0.00025479,9]
[419089515,1774860410501,-500.0,0.00025479,7]
[419089516,1774860410567,-427.63756195,0.00025479,9]
[419089517,1774860410640,-3465.73,0.00025479,9]
[419089518,1774860410710,-500.0,0.00025479,9]
[419089519,1774860410780,-5951.73,0.00025479,9]
[419089520,1774860410851,-1035.51,0.00025479,9]
[419089521,1774860410919,-500.0,0.00025479,9]
[419089522,1774860410989,-839.98,0.00025479,9]
[419089523,1774860411061,-500.0,0.00025479,9]
[419089524,1774860411132,-458.97823207,0.00025479,9]
[419089525,1774860411202,-500.0,0.00025479,9]
[419089526,1774860411273,-500.0,0.00025479,9]
[419089527,1774860411342,-416.60033578,0.00025479,9]
[419089528,1774860411411,-500.0,0.00025479,9]
[419089529,1774860411487,-448.6433785,0.00025479,9]
[419089530,1774860411568,-500.0,0.00025479,9]
[419089531,1774860411646,-500.0,0.00025479,9]
[419089532,1774860411721,-2353.56,0.00025479,9]
[419089533,1774860411797,-500.0,0.00025479,9]
[419089534,1774860411869,-500.0,0.00025479,9]
[419089535,1774860411941,-500.0,0.00025479,9]
[419089536,1774860412014,-500.0,0.00025753,9]
[419089537,1774860412089,-627.1,0.00025753,9]
[419089538,1774860412160,-500.0,0.00025753,9]
[419089539,1774860412234,-8333.33,0.00025753,9]
[419089540,1774860412306,-500.0,0.00025753,9]
[419089541,1774860412379,-500.0,0.00025753,7]
[419089542,1774860412450,-2775.96,0.00025753,9]
[419089543,1774860412525,-508.7,0.00025753,9]
[419089544,1774860412600,-500.0,0.00025753,9]
[419089545,1774860412673,-701.0,0.00025753,9]
[419089546,1774860412750,-714.85,0.00025753,9]
[419089547,1774860412829,-500.0,0.00025753,9]
[419089548,1774860412902,-500.0,0.00025753,9]
[419089549,1774860412973,-500.0,0.00025753,9]
[419089550,1774860413048,-500.0,0.00025753,9]
[419089551,1774860413121,-500.0,0.00025753,9]
[419089552,1774860413193,-217.56875538,0.00025753,9]
[419089553,1774860413267,-500.0,0.00025753,9]
[419089554,1774860413342,-500.0,0.00025753,7]
[419089555,1774860413417,-3465.73,0.00025753,9]
[419089556,1774860413509,-500.0,0.00025753,9]
[419089557,1774860413585,-5951.73,0.00025753,9]
[419089558,1774860413661,-1035.51,0.00025753,9]
[419089559,1774860413738,-500.0,0.00025753,9]
[419089560,1774860413815,-839.98,0.00025753,9]
[419089561,1774860413895,-500.0,0.00025753,9]
[419089562,1774860413970,-500.0,0.00025753,9]
[419089563,1774860414049,-500.0,0.00025753,9]
[419089564,1774860414129,-500.0,0.00025753,9]
[419089565,1774860414206,-500.0,0.00025753,9]
[419089566,1774860414283,-500.0,0.00025753,9]
[419089567,1774860414363,-2353.56,0.00025753,9]
[419089568,1774860414441,-364.55089284,0.00025753,9]
[419089569,1774860414513,-305.07018931,0.00025753,9]
[419089570,1774860414587,-500.0,0.00025753,9]
[419089571,1774860414658,-179.86482046,0.00026,30]
[419089572,1774860414730,-500.0,0.00026027,9]
[419089573,1774860414940,-627.1,0.00026027,9]
[419089574,1774860415011,-191.4153215,0.00026027,9]
[419089575,1774860415080,-8333.33,0.00026027,9]
[419089576,1774860415150,-500.0,0.00026027,9]
[419089577,1774860415218,-500.0,0.00026027,7]
[419089578,1774860415285,-2775.96,0.00026027,9]
[419089579,1774860415355,-508.7,0.00026027,9]
[419089580,1774860415424,-500.0,0.00026027,9]
[419089581,1774860415494,-701.0,0.00026027,9]
[419089582,1774860415563,-714.85,0.00026027,9]
[419089583,1774860415631,-500.0,0.00026027,9]
[419089584,1774860415697,-500.0,0.00026027,9]
[419089585,1774860415762,-500.0,0.00026027,9]
[419089586,1774860415827,-500.0,0.00026027,9]
[419089587,1774860415892,-500.0,0.00026027,9]
[419089588,1774860415959,-500.0,0.00026027,9]
[419089589,1774860416027,-500.0,0.00026027,7]
[419089591,1774860416095,-3465.73,0.00026027,9]
[419089592,1774860416165,-472.36086643,0.00026027,9]
[419089593,1774860416233,-5951.73,0.00026027,9]
[419089594,1774860416301,-1035.51,0.00026027,9]
[419089595,1774860416369,-500.0,0.00026027,9]
[419089596,1774860416435,-839.98,0.00026027,9]
[419089597,1774860416505,-500.0,0.00026027,9]
[419089598,1774860416573,-500.0,0.00026027,9]
[419089599,1774860416645,-500.0,0.00026027,9]
[419089600,1774860416716,-500.0,0.00026027,9]
[419089601,1774860416788,-422.64742426,0.00026027,9]
[419089602,1774860416858,-500.0,0.00026027,9]
[419089603,1774860416926,-2353.56,0.00026027,9]
[419089604,1774860416993,-526.86964896,0.00026027,9]
[419089605,1774860417061,-500.0,0.00026301,9]
[419089606,1774860417126,-627.1,0.00026301,9]
[419089607,1774860417192,-8333.33,0.00026301,9]
[419089608,1774860417261,-500.0,0.00026301,9]
[419089609,1774860417328,-500.0,0.00026301,7]
[419089610,1774860417395,-2775.96,0.00026301,9]
[419089611,1774860417462,-508.7,0.00026301,9]
[419089612,1774860417531,-500.0,0.00026301,9]
[419089613,1774860417601,-701.0,0.00026301,9]
[419089614,1774860417670,-714.85,0.00026301,9]
[419089615,1774860417737,-296.56824998,0.00026301,9]
[419089616,1774860417806,-500.0,0.00026301,9]
[419089617,1774860417870,-500.0,0.00026301,9]
[419089618,1774860417934,-500.0,0.00026301,9]
[419089619,1774860418001,-500.0,0.00026301,9]
[419089620,1774860418068,-500.0,0.00026301,9]
[419089621,1774860418136,-500.0,0.00026301,7]
[419089622,1774860418206,-3465.73,0.00026301,9]
[419089623,1774860418277,-5951.73,0.00026301,9]
[419089624,1774860418347,-1035.51,0.00026301,9]
[419089625,1774860418419,-500.0,0.00026301,9]
[419089626,1774860418492,-839.98,0.00026301,9]
[419089627,1774860418563,-500.0,0.00026301,9]
[419089628,1774860418637,-500.0,0.00026301,9]
[419089629,1774860418711,-500.0,0.00026301,9]
[419089630,1774860418781,-500.0,0.00026301,9]
[419089631,1774860418851,-500.0,0.00026301,9]
[419089632,1774860418922,-2353.56,0.00026301,9]
[419089633,1774860418991,-500.0,0.00026575,9]
[419089634,1774860419061,-627.1,0.00026575,9]
[419089635,1774860419132,-8333.33,0.00026575,9]
[419089636,1774860419201,-500.0,0.00026575,9]
[419089637,1774860419272,-500.0,0.00026575,7]
[419089638,1774860419341,-2775.96,0.00026575,9]
[419089639,1774860419412,-508.7,0.00026575,9]
[419089640,1774860419481,-500.0,0.00026575,9]
[419089641,1774860419548,-701.0,0.00026575,9]
[419089642,1774860419616,-714.85,0.00026575,9]
[419089643,1774860419682,-500.0,0.00026575,9]
[419089644,1774860419745,-500.0,0.00026575,9]
[419089645,1774860419807,-500.0,0.00026575,9]
[419089646,1774860419868,-500.0,0.00026575,9]
[419089647,1774860419933,-500.0,0.00026575,9]
[419089648,1774860419996,-500.0,0.00026575,7]
[419089649,1774860420066,-3465.73,0.00026575,9]
[419089650,1774860420134,-5951.73,0.00026575,9]
[419089651,1774860420203,-1035.51,0.00026575,9]
[419089652,1774860420268,-500.0,0.00026575,9]
[419089653,1774860420336,-839.98,0.00026575,9]
[419089654,1774860420406,-500.0,0.00026575,9]
[419089655,1774860420474,-500.0,0.00026575,9]
[419089656,1774860420544,-500.0,0.00026575,9]
[419089657,1774860420614,-500.0,0.00026575,9]
[419089658,1774860420691,-500.0,0.00026575,9]
[419089659,1774860420758,-2353.56,0.00026575,9]
[419089660,1774860420827,-500.0,0.00026849,9]
[419089661,1774860420895,-627.1,0.00026849,9]
[419089662,1774860420963,-8333.33,0.00026849,9]
[419089663,1774860421033,-500.0,0.00026849,9]
[419089664,1774860421199,-500.0,0.00026849,7]
[419089665,1774860421268,-2775.96,0.00026849,9]
[419089666,1774860421338,-508.7,0.00026849,9]
[419089667,1774860421406,-500.0,0.00026849,9]
[419089668,1774860421475,-701.0,0.00026849,9]
[419089669,1774860421541,-714.85,0.00026849,9]
[419089670,1774860421610,-500.0,0.00026849,9]
[419089671,1774860421678,-500.0,0.00026849,9]
[419089672,1774860421744,-500.0,0.00026849,9]
[419089673,1774860421819,-500.0,0.00026849,9]
[419089674,1774860421887,-500.0,0.00026849,9]
[419089675,1774860421955,-500.0,0.00026849,7]
[419089676,1774860422020,-3465.73,0.00026849,9]
[419089677,1774860422086,-5951.73,0.00026849,9]
[419089678,1774860422154,-1035.51,0.00026849,9]
[419089679,1774860422219,-500.0,0.00026849,9]
[419089680,1774860422286,-839.98,0.00026849,9]
[419089681,1774860422360,-197.37012996,0.00026849,9]
[419089682,1774860422428,-548.78645579,0.00026849,9]
[419089683,1774860422502,-162.1487771,0.00026849,9]
[419089684,1774860422576,-500.0,0.00026849,9]
[419089685,1774860422646,-500.0,0.00026849,9]
[419089686,1774860422714,-2353.56,0.00026849,9]
[419089687,1774860422785,-864.0,0.00026915,30]
[419089688,1774860422852,-317.28955,0.00027,120]
[419089689,1774860422917,-500.0,0.00027,30]
[419089690,1774860422982,-500.0,0.00027,30]
[419089691,1774860423050,-617.08637756,0.00027,30]
[419089692,1774860423125,-500.0,0.00027,30]
[419089693,1774860423198,-500.0,0.00027,30]
[419089694,1774860423273,-500.0,0.00027,30]
[419089695,1774860423344,-500.0,0.00027,30]
[419089696,1774860423419,-500.0,0.00027,30]
[419089697,1774860423493,-500.0,0.00027,30]
[419089698,1774860423565,-500.0,0.00027,30]
[419089699,1774860423641,-500.0,0.00027,30]
[419089700,1774860423714,-727.93765814,0.00027,30]
[419089701,1774860423785,-500.0,0.00027,30]
[419089702,1774860423855,-500.0,0.00027,30]
[419089703,1774860423921,-570.97437961,0.00027,30]
[419089704,1774860423988,-500.0,0.00027123,9]
[419089705,1774860424054,-627.1,0.00027123,9]
[419089706,1774860424123,-8333.33,0.00027123,9]
[419089707,1774860424191,-500.0,0.00027123,9]
[419089708,1774860424259,-500.0,0.00027123,7]
[419089709,1774860424325,-2775.96,0.00027123,9]
[419089710,1774860424394,-508.7,0.00027123,9]
[419089711,1774860424460,-500.0,0.00027123,9]
[419089712,1774860424526,-701.0,0.00027123,9]
[419089713,1774860424591,-714.85,0.00027123,9]
[419089714,1774860424655,-500.0,0.00027123,9]
[419089715,1774860424722,-500.0,0.00027123,9]
[419089716,1774860424787,-156.34449818,0.00027123,9]
[419089717,1774860424856,-447.28034448,0.00027123,9]
[419089718,1774860424921,-500.0,0.00027123,9]
[419089719,1774860424988,-500.0,0.00027123,7]
[419089720,1774860425055,-3465.73,0.00027123,9]
[419089721,1774860425121,-5951.73,0.00027123,9]
[419089722,1774860425188,-1035.51,0.00027123,9]
[419089723,1774860425256,-500.0,0.00027123,9]
[419089724,1774860425322,-839.98,0.00027123,9]
[419089725,1774860425391,-500.0,0.00027123,9]
[419089726,1774860425457,-500.0,0.00027123,9]
[419089727,1774860425524,-2353.56,0.00027123,9]
[419089728,1774860425596,-176.38325194,0.0002738,120]
[419089729,1774860425666,-824.10787932,0.00027396,60]
[419089730,1774860425735,-824.10787932,0.00027396,60]
[419089731,1774860425806,-824.10787932,0.00027396,60]
[419089732,1774860425875,-824.10787932,0.00027396,60]
[419089733,1774860425943,-824.10787932,0.00027396,60]
[419089734,1774860426011,-824.10787932,0.00027396,60]
[419089735,1774860426082,-824.10787932,0.00027396,60]
[419089736,1774860426152,-824.10787932,0.00027396,60]
[419089737,1774860426221,-824.10787932,0.00027396,60]
[419089738,1774860426289,-824.10787932,0.00027396,60]
[419089739,1774860426359,-824.10787932,0.00027396,60]
[419089740,1774860426429,-824.10787932,0.00027396,60]
[419089741,1774860426502,-824.10787931,0.00027396,60]
[419089742,1774860426574,-824.10787931,0.00027396,60]
[419089743,1774860426641,-213.09321273,0.00027397,9]
[419089744,1774860426707,-627.1,0.00027397,9]
[419089745,1774860426774,-8333.33,0.00027397,9]
[419089746,1774860426842,-500.0,0.00027397,9]
[419089747,1774860426911,-500.0,0.00027397,7]
[419089748,1774860426980,-2775.96,0.00027397,9]
[419089749,1774860427050,-508.7,0.00027397,9]
[419089750,1774860427120,-500.0,0.00027397,9]
[419089751,1774860427289,-701.0,0.00027397,9]
[419089752,1774860427359,-714.85,0.00027397,9]
[419089753,1774860427429,-500.0,0.00027397,9]
[419089754,1774860427500,-500.0,0.00027397,9]
[419089755,1774860427571,-500.0,0.00027397,9]
[419089756,1774860427639,-500.0,0.00027397,7]
[419089757,1774860427709,-3465.73,0.00027397,9]
[419089758,1774860427779,-5951.73,0.00027397,9]
[419089759,1774860427848,-1035.51,0.00027397,9]
[419089760,1774860427913,-839.98,0.00027397,9]
[419089761,1774860427980,-573.63967977,0.00027397,9]
[419089762,1774860428050,-500.0,0.00027397,9]
[419089763,1774860428119,-2353.56,0.00027397,9]
[419089764,1774860428195,-450.0,0.00027454,5]
[419089765,1774860428267,-887.50079312,0.00027533,60]
[419089766,1774860428341,-887.50079312,0.00027533,60]
[419089767,1774860428412,-887.50079311,0.00027533,60]
[419089768,1774860428485,-887.50079311,0.00027533,60]
[419089769,1774860428552,-887.50079311,0.00027533,60]
[419089770,1774860428622,-887.50079311,0.00027533,60]
[419089771,1774860428691,-887.50079311,0.00027533,60]
[419089772,1774860428760,-887.50079311,0.00027533,60]
[419089773,1774860428829,-887.50079311,0.00027533,60]
[419089774,1774860428897,-887.50079311,0.00027533,60]
[419089775,1774860428965,-887.50079311,0.00027533,60]
[419089776,1774860429035,-887.50079311,0.00027533,60]
[419089777,1774860429102,-887.50079311,0.00027533,60]
[419089778,1774860429174,-887.50079312,0.0002767,60]
[419089779,1774860429247,-887.50079312,0.0002767,60]
[419089780,1774860429320,-887.50079311,0.0002767,60]
[419089781,1774860429392,-887.50079311,0.0002767,60]
[419089782,1774860429463,-887.50079311,0.0002767,60]
[419089783,1774860429536,-887.50079311,0.0002767,60]
[419089784,1774860429610,-887.50079311,0.0002767,60]
[419089785,1774860429677,-887.50079311,0.0002767,60]
[419089786,1774860429744,-887.50079311,0.0002767,60]
[419089787,1774860429813,-887.50079311,0.0002767,60]
[419089788,1774860429882,-887.50079311,0.0002767,60]
[419089789,1774860429947,-887.50079311,0.0002767,60]
[419089790,1774860430013,-887.50079311,0.0002767,60]
[419089791,1774860430083,-627.1,0.00027671,9]
[419089792,1774860430155,-8333.33,0.00027671,9]
[419089793,1774860430224,-500.0,0.00027671,9]
[419089794,1774860430294,-500.0,0.00027671,7]
[419089795,1774860430363,-2775.96,0.00027671,9]
[419089796,1774860430432,-508.7,0.00027671,9]
[419089797,1774860430501,-500.0,0.00027671,9]
[419089798,1774860430569,-701.0,0.00027671,9]
[419089799,1774860430639,-714.85,0.00027671,9]
[419089800,1774860430708,-500.0,0.00027671,9]
[419089801,1774860430776,-500.0,0.00027671,9]
[419089802,1774860430843,-177.55488323,0.00027671,9]
[419089803,1774860430909,-476.41094021,0.00027671,7]
[419089804,1774860430978,-3465.73,0.00027671,9]
[419089805,1774860431046,-5951.73,0.00027671,9]
[419089806,1774860431120,-1035.51,0.00027671,9]
[419089807,1774860431195,-839.98,0.00027671,9]
[419089808,1774860431265,-238.43594406,0.00027671,9]
[419089809,1774860431337,-2353.56,0.00027671,9]
[419089810,1774860431412,-1000.0,0.00027777,5]
[419089811,1774860431484,-627.1,0.00027945,9]
[419089812,1774860431554,-8333.33,0.00027945,9]
[419089813,1774860431623,-374.12337532,0.00027945,9]
[419089814,1774860431690,-500.0,0.00027945,7]
[419089815,1774860431757,-2775.96,0.00027945,9]
[419089816,1774860431824,-508.7,0.00027945,9]
[419089817,1774860431888,-500.0,0.00027945,9]
[419089818,1774860431953,-714.85,0.00027945,9]
[419089819,1774860432018,-701.0,0.00027945,9]
[419089820,1774860432085,-500.0,0.00027945,9]
[419089821,1774860432152,-500.0,0.00027945,9]
[419089822,1774860432221,-3465.73,0.00027945,9]
[419089823,1774860432288,-5951.73,0.00027945,9]
[419089824,1774860432357,-1035.51,0.00027945,9]
[419089825,1774860432426,-839.98,0.00027945,9]
[419089826,1774860432493,-2353.56,0.00027945,9]
[419089827,1774860432562,-250.0,0.00027945,5]
[419089828,1774860432632,-1960.7221819,0.00028,5]
[419089829,1774860432700,-265.48847265,0.00028002,5]
[419089830,1774860432765,-314.91937151,0.00028082,27]
[419089831,1774860432833,-4037.55977247,0.00028208,120]
[419089832,1774860432896,-627.1,0.00028219,9]
[419089833,1774860432960,-8333.33,0.00028219,9]
[419089834,1774860433027,-562.11735319,0.00028219,7]
[419089835,1774860433199,-2775.96,0.00028219,9]
[419089836,1774860433273,-508.7,0.00028219,9]
[419089837,1774860433345,-500.0,0.00028219,9]
[419089838,1774860433422,-714.85,0.00028219,9]
[419089839,1774860433498,-701.0,0.00028219,9]
[419089840,1774860433571,-500.0,0.00028219,9]
[419089841,1774860433645,-500.0,0.00028219,9]
[419089842,1774860433720,-3465.73,0.00028219,9]
[419089843,1774860433793,-5951.73,0.00028219,9]
[419089844,1774860433866,-1035.51,0.00028219,9]
[419089845,1774860433937,-839.98,0.00028219,9]
[419089846,1774860434014,-2353.56,0.00028219,9]
[419089847,1774860434086,-627.1,0.00028493,9]
[419089848,1774860434156,-8333.33,0.00028493,9]
[419089849,1774860434223,-2775.96,0.00028493,9]
[419089850,1774860434290,-508.7,0.00028493,9]
[419089851,1774860434357,-500.0,0.00028493,9]
[419089852,1774860434425,-714.85,0.00028493,9]
[419089853,1774860434493,-701.0,0.00028493,9]
[419089854,1774860434563,-500.0,0.00028493,9]
[419089855,1774860434630,-500.0,0.00028493,9]
[419089856,1774860434693,-3465.73,0.00028493,9]
[419089857,1774860434756,-5951.73,0.00028493,9]
[419089858,1774860434820,-1035.51,0.00028493,9]
[419089859,1774860434882,-839.98,0.00028493,9]
[419089860,1774860434947,-2353.56,0.00028493,9]
[419089861,1774860435008,-350.0,0.00028493,5]
[419089862,1774860435072,-343.51085578,0.000285,120]
[419089863,1774860435136,-152.0,0.00028711,30]
[419089864,1774860435202,-240.0,0.00028735,30]
[419089865,1774860435269,-162.0,0.00028735,30]
[419089866,1774860435334,-185.0,0.00028735,30]
[419089867,1774860435398,-152.0,0.00028735,30]
[419089868,1774860435460,-221.95307905,0.0002876,120]
[419089869,1774860435521,-627.1,0.00028767,9]
[419089870,1774860435582,-8333.33,0.00028767,9]
[419089871,1774860435644,-2775.96,0.00028767,9]
[419089872,1774860435705,-508.7,0.00028767,9]
[419089873,1774860435765,-500.0,0.00028767,9]
[419089874,1774860435827,-714.85,0.00028767,9]
[419089875,1774860435889,-701.0,0.00028767,9]
[419089876,1774860435950,-500.0,0.00028767,9]
[419089877,1774860436014,-500.0,0.00028767,9]
[419089878,1774860436081,-3465.73,0.00028767,9]
[419089879,1774860436146,-5951.73,0.00028767,9]
[419089880,1774860436209,-1035.51,0.00028767,9]
[419089881,1774860436271,-839.98,0.00028767,9]
[419089882,1774860436335,-2353.56,0.00028767,9]
[419089883,1774860436397,-174.39810262,0.000288,7]
[419089884,1774860436460,-400.0,0.0002899,5]
[419089885,1774860436522,-627.1,0.00029041,9]
[419089886,1774860436587,-8333.33,0.00029041,9]
[419089887,1774860436650,-2775.96,0.00029041,9]
[419089888,1774860436714,-508.7,0.00029041,9]
[419089889,1774860436780,-500.0,0.00029041,9]
[419089890,1774860436843,-714.85,0.00029041,9]
[419089891,1774860436907,-701.0,0.00029041,9]
[419089892,1774860436971,-500.0,0.00029041,9]
[419089893,1774860437032,-257.55616366,0.00029041,9]
[419089894,1774860437095,-3465.73,0.00029041,9]
[419089895,1774860437163,-5951.73,0.00029041,9]
[419089896,1774860437228,-1035.51,0.00029041,9]
[419089898,1774860437293,-839.98,0.00029041,9]
[419089899,1774860437358,-2353.56,0.00029041,9]
[419089900,1774860437422,-450.0,0.00029041,5]
[419089901,1774860437487,-1444.0,0.00029041,120]
[419089902,1774860437550,-172.409,0.00029085,21]
[419089903,1774860437616,-187.74365562,0.00029284,120]
[419089904,1774860437680,-627.1,0.00029315,9]
[419089905,1774860437741,-8333.33,0.00029315,9]
[419089906,1774860437801,-2775.96,0.00029315,9]
[419089907,1774860437861,-508.7,0.00029315,9]
[419089908,1774860437921,-500.0,0.00029315,9]
[419089909,1774860437983,-714.85,0.00029315,9]
[419089910,1774860438042,-701.0,0.00029315,9]
[419089911,1774860438103,-500.0,0.00029315,9]
[419089912,1774860438165,-3465.73,0.00029315,9]
[419089913,1774860438229,-5951.73,0.00029315,9]
[419089914,1774860438295,-1035.51,0.00029315,9]
[419089915,1774860438362,-839.98,0.00029315,9]
[419089916,1774860438429,-2353.56,0.00029315,9]
[419089917,1774860438588,-722.1671,0.000295,5]
[419089918,1774860438654,-627.1,0.00029589,9]
[419089919,1774860438718,-8333.33,0.00029589,9]
[419089920,1774860438784,-2775.96,0.00029589,9]
[419089921,1774860438849,-508.7,0.00029589,9]
[419089922,1774860438913,-500.0,0.00029589,9]
[419089923,1774860438978,-714.85,0.00029589,9]
[419089924,1774860439043,-701.0,0.00029589,9]
[419089925,1774860439111,-500.0,0.00029589,9]
[419089926,1774860439182,-3465.73,0.00029589,9]
[419089927,1774860439253,-5951.73,0.00029589,9]
[419089928,1774860439325,-1035.51,0.00029589,9]
[419089929,1774860439396,-839.98,0.00029589,9]
[419089930,1774860439465,-2353.56,0.00029589,9]
[419089931,1774860439532,-550.0,0.00029589,5]
[419089932,1774860439604,-1000.0,0.00029607,30]
[419089933,1774860439674,-152.0,0.00029711,30]
[419089934,1774860439742,-240.0,0.00029735,30]
[419089935,1774860439810,-166.25727827,0.00029735,30]
[419089936,1774860439873,-185.0,0.00029735,30]
[419089937,1774860439937,-152.0,0.00029735,30]
[419089938,1774860440002,-627.1,0.00029863,9]
[419089939,1774860440065,-8333.33,0.00029863,9]
[419089940,1774860440127,-2775.96,0.00029863,9]
[419089941,1774860440194,-508.7,0.00029863,9]
[419089942,1774860440256,-530.88122643,0.00029863,9]
[419089943,1774860440319,-714.85,0.00029863,9]
[419089944,1774860440382,-701.0,0.00029863,9]
[419089945,1774860440446,-500.0,0.00029863,9]
[419089946,1774860440511,-3465.73,0.00029863,9]
[419089947,1774860440577,-5951.73,0.00029863,9]
[419089948,1774860440641,-1035.51,0.00029863,9]
[419089949,1774860440705,-839.98,0.00029863,9]
[419089950,1774860440769,-2353.56,0.00029863,9]
[419089951,1774860440833,-451.0,0.00029863,5]
[419089952,1774860440902,-4192.55429045,0.00029993,120]
[419089953,1774860440969,-165.46,0.0003,5]
[419089954,1774860441037,-10000.0,0.0003,5]
[419089955,1774860441107,-552.24018458,0.0003,7]
[419089956,1774860441175,-150.14651822,0.0003,120]
[419089957,1774860441242,-292.45821746,0.0003,120]
[419089958,1774860441309,-520.81826809,0.0003,30]
[419089959,1774860441379,-300.0,0.0003,15]
[419089960,1774860441450,-1000.0,0.0003,120]
[419089961,1774860441521,-1029.0,0.0003,7]
[419089962,1774860441591,-879.56114596,0.0003013,120]
[419089963,1774860441661,-627.1,0.00030136,9]
[419089964,1774860441731,-8333.33,0.00030136,9]
[419089965,1774860441804,-2775.96,0.00030136,9]
[419089966,1774860441874,-508.7,0.00030136,9]
[419089967,1774860441945,-714.85,0.00030136,9]
[419089968,1774860442015,-701.0,0.00030136,9]
[419089969,1774860442087,-500.0,0.00030136,9]
[419089970,1774860442159,-3465.73,0.00030136,9]
[419089971,1774860442231,-5951.73,0.00030136,9]
[419089972,1774860442305,-1035.51,0.00030136,9]
[419089973,1774860442383,-839.98,0.00030136,9]
[419089974,1774860442456,-2353.56,0.00030136,9]
[419089975,1774860442527,-150.8669,0.00030137,120]
[419089976,1774860442601,-650.0,0.00030137,5]
[419089977,1774860442671,-627.1,0.0003041,9]
[419089978,1774860442747,-8333.33,0.0003041,9]
[419089979,1774860442817,-2775.96,0.0003041,9]
[419089980,1774860442888,-508.7,0.0003041,9]
[419089981,1774860442966,-714.85,0.0003041,9]
[419089982,1774860443038,-701.0,0.0003041,9]
[419089983,1774860443135,-500.0,0.0003041,9]
[419089984,1774860443212,-3465.73,0.0003041,9]
[419089985,1774860443291,-5951.73,0.0003041,9]
[419089986,1774860443370,-1035.51,0.0003041,9]
[419089987,1774860443448,-839.98,0.0003041,9]
[419089988,1774860443529,-2353.56,0.0003041,9]
[419089989,1774860443609,-451.0,0.0003041,6]
[419089990,1774860443689,-627.1,0.00030684,9]
[419089991,1774860443767,-8333.33,0.00030684,9]
[419089992,1774860443843,-2775.96,0.00030684,9]
[419089993,1774860443917,-508.7,0.00030684,9]
[419089994,1774860443991,-714.85,0.00030684,9]
[419089995,1774860444066,-701.0,0.00030684,9]
[419089996,1774860444233,-500.0,0.00030684,9]
[419089997,1774860444313,-3465.73,0.00030684,9]
[419089998,1774860444393,-5951.73,0.00030684,9]
[419089999,1774860444474,-1035.51,0.00030684,9]
[419090000,1774860444552,-839.98,0.00030684,9]
[419090001,1774860444630,-2353.56,0.00030684,9]
[419090002,1774860444709,-750.0,0.00030685,5]
[419090003,1774860444789,-152.0,0.00030711,30]
[419090004,1774860444868,-240.0,0.00030735,30]
[419090005,1774860444942,-185.0,0.00030735,30]
[419090006,1774860445017,-152.0,0.00030735,30]
[419090007,1774860445095,-1636.5,0.000309,120]
[419090008,1774860445169,-627.24268557,0.00030958,9]
[419090009,1774860445241,-8333.41,0.00030958,9]
[419090010,1774860445312,-2776.08322964,0.00030958,9]
[419090011,1774860445383,-508.72436471,0.00030958,9]